Workbook

Sheet Market Data
B2: Curve Date | C2: 2024-05-14
B4: INR MIBOR
B5: Date | C5: Tenor | D5: Zero Rate
B6: =val_Date -> 2024-05-14 | D6: =D7 -> 6.9918
B7: 2024-06-15 | C7: 1M | D7: 6.9918
B8: 2024-07-16 | C8: 2M | D8: 6.9925
B9: 2024-08-15 | C9: 3M | D9: 6.9522
B10: 2024-11-15 | C10: 6M | D10: 6.924
B11: 2025-02-15 | C11: 9M | D11: 6.8758
B12: 2025-05-15 | C12: 1Y | D12: 6.8604
B13: 2026-05-15 | C13: 2Y | D13: 6.7017
B14: 2027-05-15 | C14: 3Y | D14: 6.6484
B15: 2028-05-16 | C15: 4Y | D15: 6.616
B16: 2029-05-15 | C16: 5Y | D16: 6.6178
B17: 2031-05-15 | C17: 7Y | D17: 6.669
B18: 2034-05-16 | C18: 10Y | D18: 6.6681
B19: 2999-02-14 | D19: =D18 -> 6.6681

Sheet Inputs
B2: Trade Details
B4: Sr. No. | C4: Nominal | D4: Valuation Date | E4: Spot Date | F4: Option Maturity | G4: Swap Start Date | H4: Swap Maturity | I4: Strike | J4: Volatility | K4: Fixed Leg | L4: Float Leg | M4: Buy/Sell
B5: 1 | C5: 1000000 | D5: 2024-05-14 | E5: 2024-05-15 | F5: 2024-05-24 | G5: 2024-05-27 | H5: 2029-05-28 | I5: 0.062 | J5: 0.1049 | K5: Payer | L5: Receiver | M5: Buy
C7: 2024-03-24 | D7: 2024-05-14 | E7: 2024-05-15 | H7: 2024-05-24
I8: 2024-05-27 | J8: 2029-05-28
C11: Swaption maturity | D11: 2 months
C12: IRS maturity | D12: 5 years
D14: 2*5

Sheet Vol Proof - Prod Sample (hidden)
B57: Type | C57: 1. SWAPTION | D57: 1. SWAPTION
B58: Instrument | C58: INR OIS CMP A 1Y | D58: INR OIS CMP A 1Y
B59: Generator Details | C59: Open | D59: Open
B60: Buy/Sell | C60: Buy | D60: Buy
B61: Nominal | C61: 1000000000 | D61: INR
B62: Option style | C62: European | D62: European
B63: Exercise dates | C63: Details | D63: Details
B64: Option expiration period | C64: 1m | D64: 2023-11-17
B65: Maturity period | C65: 1y | D65: 2024-11-20
B66: Exercise Mode | C66: Standard | D66: Standard
B67: Flows | C67: Open | D67: Open
B68: Strike | C68: 6.96 | D68: 6.96
B69: Volatility | C69: 8.25 | D69: 8.25
B70: Forward | C70: 0 | D70: 0
B71: Premium | C71: 0.0536 | D71: 0.0536
B72: Settl.Premium Amount | C72: 536000 | D72: 536000
B73: Settl.Date | C73: 2023-10-18 | D73: 2023-10-18
B75: Pay/Receive1 | C75: Pay | D75: Pay
B76: Leg1 type | C76: Fixed | D76: Fixed
B77: Currency1 | C77: INR | D77: INR
B78: Index1
B79: Rate/Margin | C79: 6.96 | D79: 6.96
B80: Leg NPV | C80: 0 | D80: 0
B82: Pay/Receive2 | C82: Receive | D82: Receive
B83: Leg type2 | C83: Floating | D83: Floating
B84: Currency2 | C84: INR | D84: INR
B85: Index2 | C85: INR MIBOR CMP 1Y | D85: INR MIBOR CMP 1Y
B86: Rate/Margin2 | C86: 0 | D86: 0
B87: Leg NPV2 | C87: 0 | D87: 0
B89: Portfolio | C89: MU-TRIR-SWN-T01 | D89: MU-TRIR-SWN-T01
B90: Internal | C90: No | D90: No
B91: Counterpart | C91: ICICI-MUM | D91: ICICI-MUM
B92: Cnt Number | C92: 161875975 | D92: 161875975
B93: Origin Reference | C93: 161875975 | D93: 161875975
B94: Trading Date | C94: 2023-10-17 | D94: Fixed
B95: View | C95: SWAPTION 2 | D95: SWAPTION 2
B96: Typology | C96: OSWP | D96: OSWP
B97: B2B Number
B98: BRANCH_DET
B99: Reuters Conv. | C99: 14737 | D99: 14737
B111: PCK.NB | C111: CNT.NB | D111: TRN.NB | E111: ROOT_REF | F111: G.ID | G111: FAMILY | H111: PORTFOLIO | I111: PL INSTRUMENT | J111: RATE 0 | K111: NOMINAL 0 | L111: TRN.STATUS | M111: NOMINAL | N111: CNT.VERSION | O111: TRN.DATE | P111: SE_PAY_D | Q111: EXPIRY | R111: SE_MAT | S111: COUNTERPART | T111: TYPE | U111: LABEL | V111: RATE | W111: B/S | X111: TRN.TYPOLOGY | Y111: GROUP | Z111: VAL_DATE | AA111: SYS.DATE | AB111: I/E | AC111: MRPL_DATE | AD111: STP.STATUS | AE111: CUR 0 | AF111: CUR 1 | AG111: NOMINAL 1 | AH111: TRADER | AI111: SETTL_METH | AJ111: TRN_TIME | AK111: BRK_THIRDP | AL111: VAL.STATUS | AM111: PAY/REC 1 | AN111: PAY_NET | AO111: PAY/REC 0 | AP111: CNT.TYPOLOGY | AQ111: TYPOLOGY | AR111: COMP_TYPO | AS111: TRN_TYPO | AT111: TRN.TIME | AU111: COUNTERPART | AV111: MARKET INDEX | AW111: Instrument Label
B112: 0 | C112: 161875975 | D112: 162029499 | E112: 161875975 | G112: IRD | H112: MU-TRIR-SWN-T01 | I112: INR OIS CMP A 1Y | J112: 6.96 | K112: 1000000000 | L112: DEAD | M112: 1000000000 | N112: 2 | O112: 2023-10-17 | Q112: 2023-11-17 | S112: ICICI-MUM | U112: mx | V112: 6.96 | W112: Buy | X112: OSWP | Y112: OSWP | Z112: 2023-11-17 | AA112: 2023-10-17 | AB112: E | AC112: 2023-10-17 | AD112: Matched | AE112: INR | AF112: INR | AG112: 1000000000 | AH112: 7810679 | AI112: 0 | AJ112: 36024 | AK112: 0 | AM112: R | AN112: 1 | AO112: P | AP112: OSWP | AQ112: 1252 | AR112: 0 | AT112: 10:00:24 | AU112: 547 | AV112: 176 | AW112: 55
F115: 1M | H115: 3M | J115: 6M | L115: 9M | N115: 1Y | P115: 18M | R115: 2Y | T115: 3Y | V115: 4Y | X115: 5Y | Z115: 7Y | AB115: 10Y
B116: Swap | C116: Options | D116: Model & Settings | F116: 2023-12-15 | H116: 2024-02-15 | J116: 2024-05-15 | L116: 2024-08-16 | N116: 2024-11-18 | P116: 2025-05-15 | R116: 2025-11-17 | T116: 2026-11-16 | V116: 2027-11-15 | X116: 2028-11-15 | Z116: 1930-11-15 | AB116: 1933-11-15
B117: 1Y | D117: VolX | E117: Y | F117: 6.808 | G117: 7.808 | H117: 7.148 | I117: 8.148 | J117: 7.655 | K117: 8.655 | L117: 8.272 | M117: 9.272 | N117: 8.795 | O117: 9.795 | P117: 9.165 | Q117: 10.165 | R117: 9.576 | S117: 10.576 | T117: 10.425 | U117: 11.425 | V117: 11.323 | W117: 12.323 | X117: 12.324 | Y117: 13.324 | Z117: 11.796 | AA117: 12.796 | AB117: 10.765 | AC117: 11.765
B118: 2Y | D118: VolX | E118: Y | F118: 7.445 | G118: 8.445 | H118: 7.844 | I118: 8.844 | J118: 8.434 | K118: 9.434 | L118: 9.059 | M118: 10.059 | N118: 9.706 | O118: 10.706 | P118: 10.023 | Q118: 11.023 | R118: 10.374 | S118: 11.374 | T118: 11.109 | U118: 12.109 | V118: 11.92 | W118: 12.92 | X118: 12.493 | Y118: 13.493 | Z118: 12.115 | AA118: 13.115 | AB118: 10.933 | AC118: 11.933
B119: 3Y | D119: VolX | E119: Y | F119: 7.829 | G119: 8.829 | H119: 8.325 | I119: 9.325 | J119: 9.066 | K119: 10.066 | L119: 9.833 | M119: 10.833 | N119: 10.633 | O119: 11.633 | P119: 10.896 | Q119: 11.896 | R119: 11.186 | S119: 12.186 | T119: 11.822 | U119: 12.822 | V119: 12.329 | W119: 13.329 | X119: 12.971 | Y119: 13.971 | Z119: 12.339 | AA119: 13.339 | AB119: 11.363 | AC119: 12.363
B120: 4Y | D120: VolX | E120: Y | F120: 8.159 | G120: 9.159 | H120: 8.766 | I120: 9.766 | J120: 9.671 | K120: 10.671 | L120: 10.601 | M120: 11.601 | N120: 11.573 | O120: 12.573 | P120: 11.786 | Q120: 12.786 | R120: 12.023 | S120: 13.023 | T120: 12.407 | U120: 13.407 | V120: 12.91 | W120: 13.91 | X120: 13.398 | Y120: 14.398 | Z120: 12.638 | AA120: 13.638 | AB120: 11.742 | AC120: 12.742
B121: 5Y | D121: VolX | E121: Y | F121: 8.475 | G121: 9.475 | H121: 9.197 | I121: 10.197 | J121: 10.276 | K121: 11.276 | L121: 11.378 | M121: 12.378 | N121: 12.536 | O121: 13.536 | P121: 12.641 | Q121: 13.641 | R121: 12.762 | S121: 13.762 | T121: 13.11 | U121: 14.11 | V121: 13.464 | W121: 14.464 | X121: 13.746 | Y121: 14.746 | Z121: 12.87 | AA121: 13.87 | AB121: 12.071 | AC121: 13.071
B122: 7Y | D122: VolX | E122: Y | F122: 9.593 | G122: 10.593 | H122: 10.211 | I122: 11.211 | J122: 11.138 | K122: 12.138 | L122: 12.078 | M122: 13.078 | N122: 13.066 | O122: 14.066 | P122: 13.136 | Q122: 14.136 | R122: 13.219 | S122: 14.219 | T122: 13.361 | U122: 14.361 | V122: 13.522 | W122: 14.522 | X122: 13.62 | Y122: 14.62 | Z122: 13.181 | AA122: 14.181 | AB122: 12.845 | AC122: 13.845
B123: 10Y | D123: VolX | E123: Y | F123: 11.265 | G123: 12.265 | H123: 11.735 | I123: 12.735 | J123: 12.437 | K123: 13.437 | L123: 13.148 | M123: 14.148 | N123: 13.893 | O123: 14.893 | P123: 13.827 | Q123: 14.827 | R123: 13.761 | S123: 14.761 | T123: 13.697 | U123: 14.697 | V123: 13.638 | W123: 14.638 | X123: 13.556 | Y123: 14.556 | Z123: 13.669 | AA123: 14.669 | AB123: 13.914 | AC123: 14.914

Sheet Dummy Trade
B2: Fixed Leg
B4: DF (Val Date to Swap Start) | C4: =(1+InterpolateLocal(B7,inr_ois_dates,inr_ois_rates)%)^(-YEARFRAC(val_Date,B7,3)) -> 0.9975958641
B6: Calculation Start Date | C6: Calculation End Date | D6: Payment Date | E6: Remaining Capital | F6: Rate | G6: Yearfrac | H6: Undiscounted CFs | I6: DF (Val to Payment) | J6: DF (Swap Start to Payment) | K6: Discounted CF
B7: 2024-05-27 | C7: 2024-11-27 | D7: 2024-11-27 | E7: =Inputs!$C$5 -> 1000000 | F7: =Inputs!$I$5 -> 0.062 | G7: =YEARFRAC(B7,C7,3) -> 0.504109589 | H7: =E7*F7*G7 -> 31254.79452 | I7: =(1+InterpolateLocal(D7,inr_ois_dates,inr_ois_rates)%)^(-YEARFRAC(val_Date,D7,3)) -> 0.9645419972 | J7: =(1+InterpolateLocal(D7,inr_ois_dates,inr_ois_rates)%)^(-YEARFRAC(val_Date,D7,3))/$C$4 -> 0.9668664756 | K7: =H7*J7 -> 30219.21302 | L7: =I7*G7 -> 0.4862348698
B8: 2024-11-27 | C8: 2025-05-27 | D8: 2025-05-27 | E8: =Inputs!$C$5 -> 1000000 | F8: =Inputs!$I$5 -> 0.062 | G8: =YEARFRAC(B8,C8,3) -> 0.495890411 | H8: =E8*F8*G8 -> 30745.20548 | I8: =(1+InterpolateLocal(D8,inr_ois_dates,inr_ois_rates)%)^(-YEARFRAC(val_Date,D8,3)) -> 0.9336386315 | J8: =(1+InterpolateLocal(D8,inr_ois_dates,inr_ois_rates)%)^(-YEARFRAC(val_Date,D8,3))/$C$4 -> 0.935888635 | K8: =H8*J8 -> 28774.08839 | L8: =I8*G8 -> 0.4629824447
B9: 2025-05-27 | C9: 2025-11-27 | D9: 2025-11-27 | E9: =Inputs!$C$5 -> 1000000 | F9: =Inputs!$I$5 -> 0.062 | G9: 0.504109589 | H9: 31254.79452 | I9: =(1+InterpolateLocal(D9,inr_ois_dates,inr_ois_rates)%)^(-YEARFRAC(val_Date,D9,3)) -> 0.9039897736 | J9: =(1+InterpolateLocal(D9,inr_ois_dates,inr_ois_rates)%)^(-YEARFRAC(val_Date,D9,3))/$C$4 -> 0.9061683254 | K9: 28322.10481 | L9: 0.4557099133
B10: 2025-11-27 | C10: 2026-05-27 | D10: 2026-05-27 | E10: =Inputs!$C$5 -> 1000000 | F10: =Inputs!$I$5 -> 0.062 | G10: 0.495890411 | H10: 30745.20548 | I10: =(1+InterpolateLocal(D10,inr_ois_dates,inr_ois_rates)%)^(-YEARFRAC(val_Date,D10,3)) -> 0.8763316122 | J10: =(1+InterpolateLocal(D10,inr_ois_dates,inr_ois_rates)%)^(-YEARFRAC(val_Date,D10,3))/$C$4 -> 0.8784435098 | K10: 27007.92621 | L10: 0.4345644433
B11: 2026-05-27 | C11: 2026-11-27 | D11: 2026-11-27 | E11: =Inputs!$C$5 -> 1000000 | F11: =Inputs!$I$5 -> 0.062 | G11: 0.504109589 | H11: 31254.79452 | I11: =(1+InterpolateLocal(D11,inr_ois_dates,inr_ois_rates)%)^(-YEARFRAC(val_Date,D11,3)) -> 0.8486887007 | J11: =(1+InterpolateLocal(D11,inr_ois_dates,inr_ois_rates)%)^(-YEARFRAC(val_Date,D11,3))/$C$4 -> 0.8507339808 | K11: 26589.51576 | L11: 0.4278321121
B12: 2026-11-27 | C12: 2027-05-27 | D12: 2027-05-27 | E12: =Inputs!$C$5 -> 1000000 | F12: =Inputs!$I$5 -> 0.062 | G12: 0.495890411 | H12: 30745.20548 | I12: =(1+InterpolateLocal(D12,inr_ois_dates,inr_ois_rates)%)^(-YEARFRAC(val_Date,D12,3)) -> 0.8225350797 | J12: =(1+InterpolateLocal(D12,inr_ois_dates,inr_ois_rates)%)^(-YEARFRAC(val_Date,D12,3))/$C$4 -> 0.8245173314 | K12: 25349.95478 | L12: 0.4078872587
B13: 2027-05-27 | C13: 2027-11-29 | D13: 2027-11-29 | E13: =Inputs!$C$5 -> 1000000 | F13: =Inputs!$I$5 -> 0.062 | G13: 0.5095890411 | H13: 31594.52055 | I13: =(1+InterpolateLocal(D13,inr_ois_dates,inr_ois_rates)%)^(-YEARFRAC(val_Date,D13,3)) -> 0.7964316 | J13: =(1+InterpolateLocal(D13,inr_ois_dates,inr_ois_rates)%)^(-YEARFRAC(val_Date,D13,3))/$C$4 -> 0.7983509442 | K13: 25223.51531 | L13: 0.4058528153
B14: 2027-11-29 | C14: 2028-05-29 | D14: 2028-05-29 | E14: =Inputs!$C$5 -> 1000000 | F14: =Inputs!$I$5 -> 0.062 | G14: 0.498630137 | H14: 30915.06849 | I14: =(1+InterpolateLocal(D14,inr_ois_dates,inr_ois_rates)%)^(-YEARFRAC(val_Date,D14,3)) -> 0.7717733729 | J14: =(1+InterpolateLocal(D14,inr_ois_dates,inr_ois_rates)%)^(-YEARFRAC(val_Date,D14,3))/$C$4 -> 0.7736332925 | K14: 23916.92623 | L14: 0.3848294627
B15: 2028-05-29 | C15: 2028-11-27 | D15: 2028-11-27 | E15: =Inputs!$C$5 -> 1000000 | F15: =Inputs!$I$5 -> 0.062 | G15: 0.498630137 | H15: 30915.06849 | I15: =(1+InterpolateLocal(D15,inr_ois_dates,inr_ois_rates)%)^(-YEARFRAC(val_Date,D15,3)) -> 0.7474806037 | J15: =(1+InterpolateLocal(D15,inr_ois_dates,inr_ois_rates)%)^(-YEARFRAC(val_Date,D15,3))/$C$4 -> 0.7492819795 | K15: 23164.10372 | L15: 0.3727163558
B16: 2028-11-27 | C16: 2029-05-28 | D16: 2029-05-28 | E16: =Inputs!$C$5 -> 1000000 | F16: =Inputs!$I$5 -> 0.062 | G16: 0.498630137 | H16: 30915.06849 | I16: =(1+InterpolateLocal(D16,inr_ois_dates,inr_ois_rates)%)^(-YEARFRAC(val_Date,D16,3)) -> 0.7239173844 | J16: =(1+InterpolateLocal(D16,inr_ois_dates,inr_ois_rates)%)^(-YEARFRAC(val_Date,D16,3))/$C$4 -> 0.7256619744 | K16: 22433.88964 | L16: 0.3609670246
B17: Total | K17: =SUM(K7:K16) -> 261001.2379 | L17: =SUM(L7:L16) -> 4.1995767
B19: Float Leg
B21: Calculation Start Date | C21: Calculation End Date | D21: Payment Date | E21: Remaining Capital | F21: DF (Swap Start to Start Date) | G21: DF (Swap Start to End Date) | H21: Fwd Rate | I21: Yearfrac | J21: Undiscounted CFs | K21: DF (Val to Payment) | L21: DF (Swap Start to Payment) | M21: Discounted CF
B22: 2024-05-27 | C22: 2024-11-27 | D22: 2024-11-27 | E22: =E7 -> 1000000 | F22: =(1+InterpolateLocal(B22,inr_ois_dates,inr_ois_rates)%)^(-YEARFRAC(val_Date,B22,3))/$C$4 -> 1 | G22: =(1+InterpolateLocal(C22,inr_ois_dates,inr_ois_rates)%)^(-YEARFRAC(val_Date,C22,3))/$C$4 -> 0.9668664756 | H22: =(F22/G22-1)/YEARFRAC(B22,C22,3) -> 0.06797921936 | I22: =YEARFRAC(B22,C22,3) -> 0.504109589 | J22: =E22*H22*I22 -> 34268.97633 | K22: =(1+InterpolateLocal(D22,inr_ois_dates,inr_ois_rates)%)^(-YEARFRAC(val_Date,D22,3)) -> 0.9645419972 | L22: =K22/$C$4 -> 0.9668664756 | M22: =J22*L22 -> 33133.52437
B23: 2024-11-27 | C23: 2025-05-27 | D23: 2025-05-27 | E23: =E8 -> 1000000 | F23: =(1+InterpolateLocal(B23,inr_ois_dates,inr_ois_rates)%)^(-YEARFRAC(val_Date,B23,3))/$C$4 -> 0.9668664756 | G23: =(1+InterpolateLocal(C23,inr_ois_dates,inr_ois_rates)%)^(-YEARFRAC(val_Date,C23,3))/$C$4 -> 0.935888635 | H23: =(F23/G23-1)/YEARFRAC(B23,C23,3) -> 0.06674846103 | I23: =YEARFRAC(B23,C23,3) -> 0.495890411 | J23: =E23*H23*I23 -> 33099.92177 | K23: =(1+InterpolateLocal(D23,inr_ois_dates,inr_ois_rates)%)^(-YEARFRAC(val_Date,D23,3)) -> 0.9336386315 | L23: =K23/$C$4 -> 0.935888635 | M23: =J23*L23 -> 30977.84061
B24: 2025-05-27 | C24: 2025-11-27 | D24: 2025-11-27 | E24: =E9 -> 1000000 | F24: =(1+InterpolateLocal(B24,inr_ois_dates,inr_ois_rates)%)^(-YEARFRAC(val_Date,B24,3))/$C$4 -> 0.935888635 | G24: =(1+InterpolateLocal(C24,inr_ois_dates,inr_ois_rates)%)^(-YEARFRAC(val_Date,C24,3))/$C$4 -> 0.9061683254 | H24: 0.06506081406 | I24: 0.504109589 | J24: 32797.78024 | K24: =(1+InterpolateLocal(D24,inr_ois_dates,inr_ois_rates)%)^(-YEARFRAC(val_Date,D24,3)) -> 0.9039897736 | L24: 0.9061683254 | M24: 29720.3096
B25: 2025-11-27 | C25: 2026-05-27 | D25: 2026-05-27 | E25: =E10 -> 1000000 | F25: =(1+InterpolateLocal(B25,inr_ois_dates,inr_ois_rates)%)^(-YEARFRAC(val_Date,B25,3))/$C$4 -> 0.9061683254 | G25: =(1+InterpolateLocal(C25,inr_ois_dates,inr_ois_rates)%)^(-YEARFRAC(val_Date,C25,3))/$C$4 -> 0.8784435098 | H25: 0.06364570746 | I25: 0.495890411 | J25: 31561.29603 | K25: =(1+InterpolateLocal(D25,inr_ois_dates,inr_ois_rates)%)^(-YEARFRAC(val_Date,D25,3)) -> 0.8763316122 | L25: 0.8784435098 | M25: 27724.81566
B26: 2026-05-27 | C26: 2026-11-27 | D26: 2026-11-27 | E26: =E11 -> 1000000 | F26: =(1+InterpolateLocal(B26,inr_ois_dates,inr_ois_rates)%)^(-YEARFRAC(val_Date,B26,3))/$C$4 -> 0.8784435098 | G26: =(1+InterpolateLocal(C26,inr_ois_dates,inr_ois_rates)%)^(-YEARFRAC(val_Date,C26,3))/$C$4 -> 0.8507339808 | H26: 0.06461158633 | I26: 0.504109589 | J26: 32571.32023 | K26: =(1+InterpolateLocal(D26,inr_ois_dates,inr_ois_rates)%)^(-YEARFRAC(val_Date,D26,3)) -> 0.8486887007 | L26: 0.8507339808 | M26: 27709.52892
B27: 2026-11-27 | C27: 2027-05-27 | D27: 2027-05-27 | E27: =E12 -> 1000000 | F27: =(1+InterpolateLocal(B27,inr_ois_dates,inr_ois_rates)%)^(-YEARFRAC(val_Date,B27,3))/$C$4 -> 0.8507339808 | G27: =(1+InterpolateLocal(C27,inr_ois_dates,inr_ois_rates)%)^(-YEARFRAC(val_Date,C27,3))/$C$4 -> 0.8245173314 | H27: 0.06411973028 | I27: 0.495890411 | J27: 31796.3594 | K27: =(1+InterpolateLocal(D27,inr_ois_dates,inr_ois_rates)%)^(-YEARFRAC(val_Date,D27,3)) -> 0.8225350797 | L27: 0.8245173314 | M27: 26216.6494
B28: 2027-05-27 | C28: 2027-11-29 | D28: 2027-11-29 | E28: =E13 -> 1000000 | F28: =(1+InterpolateLocal(B28,inr_ois_dates,inr_ois_rates)%)^(-YEARFRAC(val_Date,B28,3))/$C$4 -> 0.8245173314 | G28: =(1+InterpolateLocal(C28,inr_ois_dates,inr_ois_rates)%)^(-YEARFRAC(val_Date,C28,3))/$C$4 -> 0.7983509442 | H28: 0.06431760169 | I28: 0.5095890411 | J28: 32775.54497 | K28: =(1+InterpolateLocal(D28,inr_ois_dates,inr_ois_rates)%)^(-YEARFRAC(val_Date,D28,3)) -> 0.7964316 | L28: 0.7983509442 | M28: 26166.38727
B29: 2027-11-29 | C29: 2028-05-29 | D29: 2028-05-29 | E29: =E14 -> 1000000 | F29: =(1+InterpolateLocal(B29,inr_ois_dates,inr_ois_rates)%)^(-YEARFRAC(val_Date,B29,3))/$C$4 -> 0.7983509442 | G29: =(1+InterpolateLocal(C29,inr_ois_dates,inr_ois_rates)%)^(-YEARFRAC(val_Date,C29,3))/$C$4 -> 0.7736332925 | H29: 0.06407572563 | I29: 0.498630137 | J29: 31950.08785 | K29: =(1+InterpolateLocal(D29,inr_ois_dates,inr_ois_rates)%)^(-YEARFRAC(val_Date,D29,3)) -> 0.7717733729 | L29: 0.7736332925 | M29: 24717.65166
B30: 2028-05-29 | C30: 2028-11-27 | D30: 2028-11-27 | E30: =E15 -> 1000000 | F30: =(1+InterpolateLocal(B30,inr_ois_dates,inr_ois_rates)%)^(-YEARFRAC(val_Date,B30,3))/$C$4 -> 0.7736332925 | G30: =(1+InterpolateLocal(C30,inr_ois_dates,inr_ois_rates)%)^(-YEARFRAC(val_Date,C30,3))/$C$4 -> 0.7492819795 | H30: 0.06517763122 | I30: 0.498630137 | J30: 32499.53118 | K30: =(1+InterpolateLocal(D30,inr_ois_dates,inr_ois_rates)%)^(-YEARFRAC(val_Date,D30,3)) -> 0.7474806037 | L30: 0.7492819795 | M30: 24351.31306
B31: 2028-11-27 | C31: 2029-05-28 | D31: 2029-05-28 | E31: =E16 -> 1000000 | F31: =(1+InterpolateLocal(B31,inr_ois_dates,inr_ois_rates)%)^(-YEARFRAC(val_Date,B31,3))/$C$4 -> 0.7492819795 | G31: =(1+InterpolateLocal(C31,inr_ois_dates,inr_ois_rates)%)^(-YEARFRAC(val_Date,C31,3))/$C$4 -> 0.7256619744 | H31: 0.06527803849 | I31: 0.498630137 | J31: 32549.59727 | K31: =(1+InterpolateLocal(D31,inr_ois_dates,inr_ois_rates)%)^(-YEARFRAC(val_Date,D31,3)) -> 0.7239173844 | L31: 0.7256619744 | M31: 23620.00502
B32: Total | M32: =SUM(M31:M31) -> 23620.00502
B34: NP (Swap) | C34: =-K17+M32 -> -237381.2328
B37: Swap Annuity Factor (Using Formula) | C37: =SUMPRODUCT(G7:G16,I7:I16) -> 4.1995767
B39: Fair Forward Rate (Using Formula) | C39: =SUMPRODUCT(I22:I31,H22:H31,K22:K31)/C37 -> 0.06516811079
B41: Fair Forward Rate (Using Swap Valuation) | C41: 0.06526505827
B42: Diff | C42: =ROUND(C39-C41,6) -> -9.7e-05
B44: Fixed Leg
B46: DF (Val Date to Swap Start) | C46: =(1+InterpolateLocal(B49,inr_ois_dates,inr_ois_rates)%)^(-YEARFRAC(val_Date,B49,3)) -> 0.9975958641
B48: Calculation Start Date | C48: Calculation End Date | D48: Payment Date | E48: Remaining Capital | F48: Rate | G48: Yearfrac | H48: Undiscounted CFs | I48: DF (Val to Payment) | J48: DF (Swap Start to Payment) | K48: Discounted CF
B49: =B7 -> 2024-05-27 | C49: 2024-11-27 | D49: 2024-11-27 | E49: 1000000 | F49: =$C$41 -> 0.06526505827 | G49: =YEARFRAC(B49,C49,3) -> 0.504109589 | H49: =E49*F49*G49 -> 32900.7417 | I49: =(1+InterpolateLocal(D49,inr_ois_dates,inr_ois_rates)%)^(-YEARFRAC(val_Date,D49,3)) -> 0.9645419972 | J49: =(1+InterpolateLocal(D49,inr_ois_dates,inr_ois_rates)%)^(-YEARFRAC(val_Date,D49,3))/$C$46 -> 0.9668664756 | K49: =H49*J49 -> 31810.62418
B50: 2024-11-27 | C50: 2025-05-27 | D50: 2025-05-27 | E50: 1000000 | F50: =$C$41 -> 0.06526505827 | G50: =YEARFRAC(B50,C50,3) -> 0.495890411 | H50: =E50*F50*G50 -> 32364.31657 | I50: =(1+InterpolateLocal(D50,inr_ois_dates,inr_ois_rates)%)^(-YEARFRAC(val_Date,D50,3)) -> 0.9336386315 | J50: =(1+InterpolateLocal(D50,inr_ois_dates,inr_ois_rates)%)^(-YEARFRAC(val_Date,D50,3))/$C$46 -> 0.935888635 | K50: =H50*J50 -> 30289.39606
B51: 2025-05-27 | C51: 2025-11-27 | D51: 2025-11-27 | E51: 1000000 | F51: 0.06526505827 | G51: 0.504109589 | H51: 32900.7417 | I51: =(1+InterpolateLocal(D51,inr_ois_dates,inr_ois_rates)%)^(-YEARFRAC(val_Date,D51,3)) -> 0.9039897736 | J51: =(1+InterpolateLocal(D51,inr_ois_dates,inr_ois_rates)%)^(-YEARFRAC(val_Date,D51,3))/$C$46 -> 0.9061683254 | K51: 29813.61002
B52: 2025-11-27 | C52: 2026-05-27 | D52: 2026-05-27 | E52: 1000000 | F52: 0.06526505827 | G52: 0.495890411 | H52: 32364.31657 | I52: =(1+InterpolateLocal(D52,inr_ois_dates,inr_ois_rates)%)^(-YEARFRAC(val_Date,D52,3)) -> 0.8763316122 | J52: =(1+InterpolateLocal(D52,inr_ois_dates,inr_ois_rates)%)^(-YEARFRAC(val_Date,D52,3))/$C$46 -> 0.8784435098 | K52: 28430.22384
B53: 2026-05-27 | C53: 2026-11-27 | D53: 2026-11-27 | E53: 1000000 | F53: 0.06526505827 | G53: 0.504109589 | H53: 32900.7417 | I53: =(1+InterpolateLocal(D53,inr_ois_dates,inr_ois_rates)%)^(-YEARFRAC(val_Date,D53,3)) -> 0.8486887007 | J53: =(1+InterpolateLocal(D53,inr_ois_dates,inr_ois_rates)%)^(-YEARFRAC(val_Date,D53,3))/$C$46 -> 0.8507339808 | K53: 27989.77896
B54: 2026-11-27 | C54: 2027-05-27 | D54: 2027-05-27 | E54: 1000000 | F54: 0.06526505827 | G54: 0.495890411 | H54: 32364.31657 | I54: =(1+InterpolateLocal(D54,inr_ois_dates,inr_ois_rates)%)^(-YEARFRAC(val_Date,D54,3)) -> 0.8225350797 | J54: =(1+InterpolateLocal(D54,inr_ois_dates,inr_ois_rates)%)^(-YEARFRAC(val_Date,D54,3))/$C$46 -> 0.8245173314 | K54: 26684.93993
B55: 2027-05-27 | C55: 2027-11-29 | D55: 2027-11-29 | E55: 1000000 | F55: 0.06526505827 | G55: 0.5095890411 | H55: 33258.35846 | I55: =(1+InterpolateLocal(D55,inr_ois_dates,inr_ois_rates)%)^(-YEARFRAC(val_Date,D55,3)) -> 0.7964316 | J55: =(1+InterpolateLocal(D55,inr_ois_dates,inr_ois_rates)%)^(-YEARFRAC(val_Date,D55,3))/$C$46 -> 0.7983509442 | K55: 26551.84188
B56: 2027-11-29 | C56: 2028-05-29 | D56: 2028-05-29 | E56: 1000000 | F56: 0.06526505827 | G56: 0.498630137 | H56: 32543.12495 | I56: =(1+InterpolateLocal(D56,inr_ois_dates,inr_ois_rates)%)^(-YEARFRAC(val_Date,D56,3)) -> 0.7717733729 | J56: =(1+InterpolateLocal(D56,inr_ois_dates,inr_ois_rates)%)^(-YEARFRAC(val_Date,D56,3))/$C$46 -> 0.7736332925 | K56: 25176.4449
B57: 2028-05-29 | C57: 2028-11-27 | D57: 2028-11-27 | E57: 1000000 | F57: 0.06526505827 | G57: 0.498630137 | H57: 32543.12495 | I57: =(1+InterpolateLocal(D57,inr_ois_dates,inr_ois_rates)%)^(-YEARFRAC(val_Date,D57,3)) -> 0.7474806037 | J57: =(1+InterpolateLocal(D57,inr_ois_dates,inr_ois_rates)%)^(-YEARFRAC(val_Date,D57,3))/$C$46 -> 0.7492819795 | K57: 24383.97708
B58: 2028-11-27 | C58: 2029-05-28 | D58: 2029-05-28 | E58: 1000000 | F58: 0.06526505827 | G58: 0.498630137 | H58: 32543.12495 | I58: =(1+InterpolateLocal(D58,inr_ois_dates,inr_ois_rates)%)^(-YEARFRAC(val_Date,D58,3)) -> 0.7239173844 | J58: =(1+InterpolateLocal(D58,inr_ois_dates,inr_ois_rates)%)^(-YEARFRAC(val_Date,D58,3))/$C$46 -> 0.7256619744 | K58: 23615.3083
B59: Total | K59: =SUM(K49:K58) -> 274746.1451
B61: Float Leg
B63: Calculation Start Date | C63: Calculation End Date | D63: Payment Date | E63: Remaining Capital | F63: DF (Swap Start to Start Date) | G63: DF (Swap Start to End Date) | H63: Fwd Rate | I63: Yearfrac | J63: Undiscounted CFs | K63: DF (Val to Payment) | L63: DF (Swap Start to Payment) | M63: Discounted CF
B64: =B49 -> 2024-05-27 | C64: =C49 -> 2024-11-27 | D64: =D49 -> 2024-11-27 | E64: =E49 -> 1000000 | F64: =(1+InterpolateLocal(B64,inr_ois_dates,inr_ois_rates)%)^(-YEARFRAC(val_Date,B64,3))/$C$4 -> 1 | G64: =(1+InterpolateLocal(C64,inr_ois_dates,inr_ois_rates)%)^(-YEARFRAC(val_Date,C64,3))/$C$4 -> 0.9668664756 | H64: =(F64/G64-1)/YEARFRAC(B64,C64,3) -> 0.06797921936 | I64: =YEARFRAC(B64,C64,3) -> 0.504109589 | J64: =E64*H64*I64 -> 34268.97633 | K64: =(1+InterpolateLocal(D64,inr_ois_dates,inr_ois_rates)%)^(-YEARFRAC(val_Date,D64,3)) -> 0.9645419972 | L64: =K64/$C$46 -> 0.9668664756 | M64: =J64*L64 -> 33133.52437
B65: =B50 -> 2024-11-27 | C65: 2025-05-27 | D65: 2025-05-27 | E65: 1000000 | F65: =(1+InterpolateLocal(B65,inr_ois_dates,inr_ois_rates)%)^(-YEARFRAC(val_Date,B65,3))/$C$4 -> 0.9668664756 | G65: =(1+InterpolateLocal(C65,inr_ois_dates,inr_ois_rates)%)^(-YEARFRAC(val_Date,C65,3))/$C$4 -> 0.935888635 | H65: =(F65/G65-1)/YEARFRAC(B65,C65,3) -> 0.06674846103 | I65: =YEARFRAC(B65,C65,3) -> 0.495890411 | J65: =E65*H65*I65 -> 33099.92177 | K65: =(1+InterpolateLocal(D65,inr_ois_dates,inr_ois_rates)%)^(-YEARFRAC(val_Date,D65,3)) -> 0.9336386315 | L65: =K65/$C$46 -> 0.935888635 | M65: =J65*L65 -> 30977.84061
B66: =B51 -> 2025-05-27 | C66: 2025-11-27 | D66: 2025-11-27 | E66: 1000000 | F66: =(1+InterpolateLocal(B66,inr_ois_dates,inr_ois_rates)%)^(-YEARFRAC(val_Date,B66,3))/$C$4 -> 0.935888635 | G66: =(1+InterpolateLocal(C66,inr_ois_dates,inr_ois_rates)%)^(-YEARFRAC(val_Date,C66,3))/$C$4 -> 0.9061683254 | H66: 0.06506081406 | I66: 0.504109589 | J66: 32797.78024 | K66: =(1+InterpolateLocal(D66,inr_ois_dates,inr_ois_rates)%)^(-YEARFRAC(val_Date,D66,3)) -> 0.9039897736 | L66: 0.9061683254 | M66: 29720.3096
B67: =B52 -> 2025-11-27 | C67: 2026-05-27 | D67: 2026-05-27 | E67: 1000000 | F67: =(1+InterpolateLocal(B67,inr_ois_dates,inr_ois_rates)%)^(-YEARFRAC(val_Date,B67,3))/$C$4 -> 0.9061683254 | G67: =(1+InterpolateLocal(C67,inr_ois_dates,inr_ois_rates)%)^(-YEARFRAC(val_Date,C67,3))/$C$4 -> 0.8784435098 | H67: 0.06364570746 | I67: 0.495890411 | J67: 31561.29603 | K67: =(1+InterpolateLocal(D67,inr_ois_dates,inr_ois_rates)%)^(-YEARFRAC(val_Date,D67,3)) -> 0.8763316122 | L67: 0.8784435098 | M67: 27724.81566
B68: =B53 -> 2026-05-27 | C68: 2026-11-27 | D68: 2026-11-27 | E68: 1000000 | F68: =(1+InterpolateLocal(B68,inr_ois_dates,inr_ois_rates)%)^(-YEARFRAC(val_Date,B68,3))/$C$4 -> 0.8784435098 | G68: =(1+InterpolateLocal(C68,inr_ois_dates,inr_ois_rates)%)^(-YEARFRAC(val_Date,C68,3))/$C$4 -> 0.8507339808 | H68: 0.06461158633 | I68: 0.504109589 | J68: 32571.32023 | K68: =(1+InterpolateLocal(D68,inr_ois_dates,inr_ois_rates)%)^(-YEARFRAC(val_Date,D68,3)) -> 0.8486887007 | L68: 0.8507339808 | M68: 27709.52892
B69: =B54 -> 2026-11-27 | C69: 2027-05-27 | D69: 2027-05-27 | E69: 1000000 | F69: =(1+InterpolateLocal(B69,inr_ois_dates,inr_ois_rates)%)^(-YEARFRAC(val_Date,B69,3))/$C$4 -> 0.8507339808 | G69: =(1+InterpolateLocal(C69,inr_ois_dates,inr_ois_rates)%)^(-YEARFRAC(val_Date,C69,3))/$C$4 -> 0.8245173314 | H69: 0.06411973028 | I69: 0.495890411 | J69: 31796.3594 | K69: =(1+InterpolateLocal(D69,inr_ois_dates,inr_ois_rates)%)^(-YEARFRAC(val_Date,D69,3)) -> 0.8225350797 | L69: 0.8245173314 | M69: 26216.6494
B70: =B55 -> 2027-05-27 | C70: 2027-11-29 | D70: 2027-11-29 | E70: 1000000 | F70: =(1+InterpolateLocal(B70,inr_ois_dates,inr_ois_rates)%)^(-YEARFRAC(val_Date,B70,3))/$C$4 -> 0.8245173314 | G70: =(1+InterpolateLocal(C70,inr_ois_dates,inr_ois_rates)%)^(-YEARFRAC(val_Date,C70,3))/$C$4 -> 0.7983509442 | H70: 0.06431760169 | I70: 0.5095890411 | J70: 32775.54497 | K70: =(1+InterpolateLocal(D70,inr_ois_dates,inr_ois_rates)%)^(-YEARFRAC(val_Date,D70,3)) -> 0.7964316 | L70: 0.7983509442 | M70: 26166.38727
B71: =B56 -> 2027-11-29 | C71: 2028-05-29 | D71: 2028-05-29 | E71: 1000000 | F71: =(1+InterpolateLocal(B71,inr_ois_dates,inr_ois_rates)%)^(-YEARFRAC(val_Date,B71,3))/$C$4 -> 0.7983509442 | G71: =(1+InterpolateLocal(C71,inr_ois_dates,inr_ois_rates)%)^(-YEARFRAC(val_Date,C71,3))/$C$4 -> 0.7736332925 | H71: 0.06407572563 | I71: 0.498630137 | J71: 31950.08785 | K71: =(1+InterpolateLocal(D71,inr_ois_dates,inr_ois_rates)%)^(-YEARFRAC(val_Date,D71,3)) -> 0.7717733729 | L71: 0.7736332925 | M71: 24717.65166
B72: =B57 -> 2028-05-29 | C72: 2028-11-27 | D72: 2028-11-27 | E72: 1000000 | F72: =(1+InterpolateLocal(B72,inr_ois_dates,inr_ois_rates)%)^(-YEARFRAC(val_Date,B72,3))/$C$4 -> 0.7736332925 | G72: =(1+InterpolateLocal(C72,inr_ois_dates,inr_ois_rates)%)^(-YEARFRAC(val_Date,C72,3))/$C$4 -> 0.7492819795 | H72: 0.06517763122 | I72: 0.498630137 | J72: 32499.53118 | K72: =(1+InterpolateLocal(D72,inr_ois_dates,inr_ois_rates)%)^(-YEARFRAC(val_Date,D72,3)) -> 0.7474806037 | L72: 0.7492819795 | M72: 24351.31306
B73: =B58 -> 2028-11-27 | C73: 2029-05-28 | D73: 2029-05-28 | E73: 1000000 | F73: =(1+InterpolateLocal(B73,inr_ois_dates,inr_ois_rates)%)^(-YEARFRAC(val_Date,B73,3))/$C$4 -> 0.7492819795 | G73: =(1+InterpolateLocal(C73,inr_ois_dates,inr_ois_rates)%)^(-YEARFRAC(val_Date,C73,3))/$C$4 -> 0.7256619744 | H73: 0.06527803849 | I73: 0.498630137 | J73: 32549.59727 | K73: =(1+InterpolateLocal(D73,inr_ois_dates,inr_ois_rates)%)^(-YEARFRAC(val_Date,D73,3)) -> 0.7239173844 | L73: 0.7256619744 | M73: 23620.00502
B74: Total | M74: =SUM(M64:M73) -> 274338.0256
B76: NP (Swap) | C76: =K59-M74 -> 408.1195757 | D76: <- Check NPV
B79: Calculation | C79: Notation as per Murex Documentation | D79: Value
B80: Annuity Factor | C80: As(t) | D80: =C37 -> 4.1995767
B81: Fair Forward Rate | C81: S(t) | D81: =C39 -> 0.06516811079
B82: Nominal | C82: N | D82: =Inputs!C5 -> 1000000
B83: Strike | C83: K | D83: =Inputs!I5 -> 0.062
B84: Volatility | C84: sigmaLN | D84: =Inputs!J5 -> 0.1049
B85: Valuation Date | C85: t | D85: =Inputs!D5 -> 2024-05-14
B86: Option Maturity | C86: T | D86: =Inputs!F5 -> 2024-05-24
B87: Yerfrac (Val Date to Option Maturity) | C87: (T - t) | D87: =YEARFRAC(D85,D86,3) -> 0.02739726027
B89: d1 | C89: =LN(D81/D83)/(D84*SQRT(D87))+0.5*D84*SQRT(D87) -> 2.878886822
B90: d2 | C90: =C89-D84*SQRT(D87) -> 2.861523651
B91: N(d1) | C91: =_xlfn.NORM.S.DIST(C89,TRUE) -> 0.9980045924
B92: N(d2) | C92: =_xlfn.NORM.S.DIST(C90,TRUE) -> 0.9978919498
B93: N'(d1) | C93: =_xlfn.NORM.S.DIST(C89,FALSE) -> 0.00632697398
B94: N'(d2) | C94: =_xlfn.NORM.S.DIST(C90,FALSE) -> 0.006650273246
B95: N(-d1) | C95: =_xlfn.NORM.S.DIST(-C89,TRUE) -> 0.001995407626
B96: N(-d2) | C96: =_xlfn.NORM.S.DIST(-C90,TRUE) -> 0.002108050228
B98: NPV for swaption (as on valuation date) | C98: =D82*D80*(D81*C91-D83*C92) -> 13307.50508
B99: DF (Spot date to Val Date) | C99: =(1+InterpolateLocal(Inputs!E5,inr_ois_dates,inr_ois_rates)%)^(-YEARFRAC(Inputs!E5,val_Date,3)) -> 0.9998148609
B100: NPV for swaption (as on spot date) | C100: =C98/C99 -> 13309.96927
B108: The sample swaption deal is a fixed payer option. Thus, it is considered to be a call option.
B110: Greek | C110: Independent Value (as %) | D110: Independent Value
B111: Delta | C111: =C91*100 -> 99.80045924 | D111: =C111%*Inputs!C5 -> 998004.5924
B112: Gamma | C112: =C93/(D81*D84*SQRT(D87)) -> 5.591545476 | D112: =C112%*Inputs!C5 -> 55915.45476
B113: Vega | C113: =D81*SQRT(D87)*C93*D82/100*D80 -> 2.86609291 | D113: =C113 -> 2.86609291
B114: BPV | C114: =-D80*C91*200000 -> -838239.3666 | D114: =C114 -> -838239.3666
